bitfinex/quotes_BTCUSD_20250110
["timestamp","ask_amount","ask_price","bid_price","bid_amount"]
[1736474603305,0.0178727,93410.0,93409.0,0.38179099]
[1736474605847,0.15,93436.0,93433.0,0.08914458]
[1736474606231,0.36405,93436.0,93433.0,0.08914458]
[1736474607178,0.37054105,93436.0,93433.0,0.09014458]
[1736474607405,0.15,93434.0,93433.0,0.09014458]
[1736474607794,0.15,93434.0,93433.0,0.001]
[1736474608056,0.15,93434.0,93433.0,0.09014458]
[1736474608438,0.15,93434.0,93433.0,0.08914458]
[1736474608797,0.154,93434.0,93433.0,0.08914458]
[1736474609211,0.364057,93433.0,93432.0,0.14739123]
[1736474609612,0.45606416,93433.0,93432.0,0.08914458]
[1736474609818,0.364059,93432.0,93422.0,0.16434458]
[1736474610165,0.364059,93432.0,93407.0,0.046]
[1736474610166,0.214082,93422.0,93414.0,0.0752]
[1736474610411,0.214096,93416.0,93415.0,0.05824665]
[1736474610614,0.214096,93416.0,93415.0,0.08914458]
[1736474611027,0.4710098,93416.0,93415.0,0.08914458]
[1736474611242,0.2141,93414.0,93413.0,0.08914458]
[1736474611391,0.2569138,93416.0,93408.0,0.08914458]
[1736474611392,0.214105,93412.0,93408.0,0.08914458]
[1736474611601,0.214105,93412.0,93411.0,0.08914458]
[1736474611807,0.15,93422.0,93413.0,0.08914458]
[1736474612019,0.2141,93414.0,93413.0,0.08914458]
[1736474612220,0.3641,93414.0,93413.0,0.08914458]
[1736474612423,0.15,93413.0,93407.0,0.0831]
[1736474612625,0.214114,93408.0,93407.0,0.0831]
[1736474613440,0.214116,93407.0,93406.0,0.08914458]
[1736474614673,0.21413,93401.0,93400.0,0.05824665]
[1736474615003,0.15,93400.0,93399.0,0.0777]
[1736474615215,0.15,93398.0,93395.0,0.08914458]
[1736474615426,0.0578257,93397.0,93395.0,0.08914458]
[1736474615637,0.214141,93396.0,93395.0,0.08914458]
[1736474615850,0.214141,93396.0,93391.0,0.14739123]
[1736474616083,0.578283,93396.0,93395.0,0.08914458]
[1736474616304,0.15,93393.0,93391.0,0.08914458]
[1736474616533,0.15,93391.0,93388.0,0.00014726]
[1736474617388,0.16548564,93391.0,93388.0,0.00014726]
[1736474617606,0.15,93389.0,93388.0,0.00014726]
[1736474618583,0.214155,93390.0,93388.0,0.00014726]
[1736474618790,0.15,93389.0,93388.0,0.00014726]
[1736474619398,0.23078973,93389.0,93388.0,0.00114726]
[1736474619603,0.15,93389.0,93388.0,0.00314726]
[1736474619808,0.15,93389.0,93388.0,0.00114726]
[1736474620011,0.15,93389.0,93388.0,0.00014726]
[1736474620230,0.15,93389.0,93388.0,0.00214726]
[1736474622364,0.15,93389.0,93388.0,0.07824726]
[1736474624753,0.15,93389.0,93388.0,0.07624726]
[1736474624958,0.22959126,93392.0,93391.0,0.14739123]
[1736474624959,0.01544026,93392.0,93391.0,0.14739123]
[1736474625098,0.01544026,93392.0,93391.0,0.08914458]
[1736474625300,0.364148,93393.0,93392.0,0.08914458]
[1736474625519,0.578296,93393.0,93392.0,0.08914458]
[1736474626394,0.364148,93393.0,93392.0,0.08914458]
[1736474626604,0.15,93393.0,93392.0,0.14739123]
[1736474626813,0.01545666,93393.0,93392.0,0.14739123]
[1736474627197,0.214136,93399.0,93396.0,0.08914458]
[1736474627353,0.2291251,93399.0,93397.0,0.08914458]
[1736474627565,0.05491851,93398.0,93392.0,0.001]
[1736474627765,0.364157,93389.0,93388.0,0.13449391]
[1736474628915,0.364157,93389.0,93388.0,0.00014726]
[1736474630194,0.359157,93389.0,93388.0,0.00114726]
[1736474630442,0.359157,93389.0,93388.0,0.00314726]
[1736474630577,0.359157,93389.0,93388.0,0.00114726]
[1736474630992,0.359157,93389.0,93388.0,0.00414726]
[1736474631187,0.359157,93389.0,93388.0,0.00114726]
[1736474631392,0.359157,93389.0,93388.0,0.00314726]
[1736474631638,0.359157,93389.0,93388.0,0.00214726]
[1736474632019,0.359157,93389.0,93388.0,0.00314726]
[1736474632218,0.37397841,93389.0,93388.0,0.00314726]
[1736474632419,0.37397841,93389.0,93388.0,0.00214726]
[1736474633107,0.37397841,93389.0,93388.0,0.00014726]
[1736474633539,0.37397841,93389.0,93388.0,0.00214726]
[1736474633775,0.37397841,93389.0,93388.0,0.00014726]
[1736474634216,0.37397841,93389.0,93388.0,0.00214726]
[1736474636521,0.37392167,93389.0,93388.0,0.20214726]
[1736474638763,0.43272824,93389.0,93388.0,0.20214726]
[1736474639193,0.43272824,93389.0,93388.0,0.1915131]
[1736474639397,0.43305747,93389.0,93388.0,0.1915131]
[1736474640017,0.43405747,93389.0,93388.0,0.16342309]
[1736474640223,0.54571082,93389.0,93388.0,0.00164992]
[1736474641462,0.54571082,93389.0,93360.0,0.13634665]
[1736474641463,0.15,93364.0,93363.0,0.08914458]
[1736474641675,0.15,93373.0,93363.0,0.08914458]
[1736474641907,0.364215,93364.0,93363.0,0.08914458]
[1736474642123,0.364217,93363.0,93360.0,0.07824728]
[1736474642330,0.364222,93361.0,93360.0,0.00014728]
[1736474642535,0.364245,93351.0,93350.0,0.0001704]
[1736474643154,0.16421597,93351.0,93350.0,0.13931705]
[1736474643363,0.16421597,93351.0,93350.0,0.22846163]
[1736474644392,0.20206127,93351.0,93350.0,0.17521498]
[1736474644595,0.16421597,93351.0,93350.0,0.0051704]
[1736474644819,0.1725075,93351.0,93350.0,0.0051704]
[1736474645442,0.1725075,93351.0,93350.0,0.0071704]
[1736474645619,0.23460565,93351.0,93350.0,0.0071704]
[1736474645855,0.23460565,93351.0,93350.0,0.0021704]
[1736474646072,0.23460565,93351.0,93350.0,0.0001704]
[1736474646294,0.23460565,93351.0,93350.0,0.0061704]
[1736474646497,0.23460565,93351.0,93350.0,0.0001704]
[1736474646704,0.1618275,93351.0,93350.0,0.0001704]
[1736474646911,0.16269597,93351.0,93350.0,0.0001704]
[1736474647112,0.32920572,93355.0,93350.0,0.0001704]
[1736474647329,0.428474,93355.0,93350.0,0.0001704]
[1736474647732,0.44303204,93355.0,93350.0,0.0001704]
[1736474648127,0.428474,93355.0,93352.0,0.08914458]
[1736474648331,0.49275325,93355.0,93352.0,0.08914458]
[1736474648534,0.428474,93355.0,93352.0,0.08914458]
[1736474648742,0.428474,93355.0,93354.0,0.08914458]
[1736474648948,0.214237,93355.0,93354.0,0.08914458]
[1736474649364,0.214237,93355.0,93350.0,0.0001704]
[1736474649365,0.21424,93354.0,93350.0,0.0001704]
[1736474649591,0.42848,93354.0,93350.0,0.0001704]
[1736474649803,0.214242,93352.0,93350.0,0.0001704]
[1736474650016,0.15,93351.0,93350.0,0.0001704]
[1736474650760,0.15,93351.0,93350.0,0.08931498]
[1736474651129,0.15,93351.0,93350.0,0.0001704]
[1736474651657,0.15,93351.0,93350.0,0.0011704]
[1736474652241,0.15,93351.0,93350.0,0.0031704]
[1736474652435,0.17773546,93351.0,93350.0,0.0011704]
[1736474652672,0.19193501,93351.0,93350.0,0.0031704]
[1736474653121,0.59395336,93351.0,93350.0,0.0031704]
[1736474653333,0.45952336,93351.0,93350.0,0.0031704]
[1736474653536,0.45962042,93351.0,93350.0,0.0011704]
[1736474653886,0.46062042,93351.0,93350.0,0.0011704]
[1736474654450,0.46062042,93351.0,93350.0,0.0001704]
[1736474654645,0.47247584,93351.0,93350.0,0.0001704]
[1736474654769,0.47277183,93351.0,93350.0,0.0001704]
[1736474654973,0.47177183,93351.0,93350.0,0.0001704]
[1736474655379,0.26618141,93351.0,93350.0,0.0001704]
[1736474655579,0.65951541,93351.0,93350.0,0.0001704]
[1736474655775,0.64806883,93351.0,93350.0,0.0001704]
[1736474656003,0.64506883,93351.0,93350.0,0.0001704]
[1736474656239,0.64906883,93351.0,93350.0,0.0011704]
[1736474656479,0.64506883,93351.0,93350.0,0.0001704]
[1736474656681,0.47027935,93343.0,93320.0,0.0787]
[1736474656880,0.364286,93333.0,93320.0,0.0787]
[1736474657089,0.364286,93333.0,93319.0,0.0001702]
[1736474657729,0.57008782,93333.0,93319.0,0.0001702]
[1736474657927,0.04175335,93326.0,93319.0,0.0001702]
[1736474658195,0.364316,93320.0,93319.0,0.0001702]
[1736474658536,0.40108762,93320.0,93319.0,0.0001702]
[1736474659361,0.364316,93320.0,93319.0,0.00066183]
[1736474659561,0.372436,93320.0,93319.0,0.00066183]
[1736474659763,0.374436,93320.0,93319.0,0.00066183]
[1736474660391,0.37286706,93320.0,93319.0,0.00066183]
[1736474660876,0.37386706,93320.0,93319.0,0.00366183]
[1736474661098,0.45553605,93320.0,93319.0,0.00366183]
[1736474661314,0.45453605,93320.0,93319.0,0.00366183]
[1736474661680,0.45453605,93320.0,93319.0,0.00466183]
[1736474662031,0.45453605,93320.0,93319.0,0.00366183]
[1736474662358,0.45453605,93320.0,93319.0,0.00166183]
[1736474662769,0.45453605,93320.0,93319.0,0.00466183]
[1736474663005,0.45453605,93320.0,93319.0,0.00166183]
[1736474663200,0.45410499,93320.0,93319.0,0.00166183]
[1736474663428,0.45410499,93320.0,93319.0,0.00466183]
[1736474663581,0.45455695,93320.0,93319.0,0.00466183]
[1736474664482,0.45410499,93320.0,93319.0,0.00466183]
[1736474665362,0.49585834,93320.0,93319.0,0.00466183]
[1736474666790,0.49585834,93320.0,93319.0,0.00066183]
[1736474666992,0.49785834,93320.0,93319.0,0.00066183]
[1736474667392,0.4993103,93320.0,93319.0,0.00066183]
[1736474667632,0.26214906,93320.0,93319.0,0.00066183]
[1736474667805,0.47646506,93320.0,93319.0,0.00066183]
[1736474668693,0.35259076,93320.0,93319.0,0.00066183]
[1736474669493,0.34447076,93320.0,93319.0,0.00066183]
[1736474672606,0.34447076,93320.0,93319.0,0.08356183]
[1736474673215,0.34247076,93320.0,93319.0,0.08356183]
[1736474673416,0.34147076,93320.0,93319.0,0.08356183]
[1736474673615,0.34347076,93320.0,93319.0,0.08356183]
[1736474673822,0.001,93320.0,93319.0,0.08356183]
[1736474674272,0.001,93320.0,93319.0,0.17270641]
[1736474674273,0.214316,93320.0,93319.0,0.17270641]
[1736474674477,0.214304,93325.0,93319.0,0.17270641]
[1736474674601,0.214304,93325.0,93324.0,0.08914458]
[1736474675733,0.214304,93325.0,93319.0,0.08456183]
[1736474675734,0.214282,93335.0,93330.0,0.05824665]
[1736474675970,0.214282,93335.0,93334.0,0.22134458]
[1736474677145,0.01752148,93342.0,93339.0,0.05824665]
[1736474677347,0.21425,93349.0,93341.0,0.14739123]
[1736474677348,0.428501,93349.0,93341.0,0.14739123]
[1736474677545,0.214262,93344.0,93343.0,0.08914458]
[1736474677752,0.00812,93352.0,93338.0,0.08914458]
[1736474677931,0.214274,93339.0,93337.0,0.0832]
[1736474678289,0.2357014,93339.0,93337.0,0.0832]
[1736474680090,0.2357014,93339.0,93337.0,0.0862]
[1736474680294,0.2357014,93339.0,93337.0,0.0872]
[1736474680531,0.214274,93339.0,93337.0,0.0872]
[1736474680706,0.214274,93339.0,93337.0,0.0862]
[1736474681143,0.214274,93339.0,93337.0,0.0872]
[1736474681461,0.214274,93339.0,93337.0,0.0862]
[1736474682053,0.214274,93339.0,93337.0,0.0872]
[1736474682223,0.2571284,93339.0,93337.0,0.0842]
[1736474682580,0.2571284,93339.0,93337.0,0.0872]
[1736474682788,0.2571284,93339.0,93337.0,0.0842]
[1736474682992,0.15,93338.0,93337.0,0.0842]
[1736474683191,0.21213984,93338.0,93337.0,0.0842]
[1736474683512,0.21213984,93338.0,93337.0,0.0832]
[1736474684316,0.21413984,93338.0,93337.0,0.0832]
[1736474684451,0.153,93338.0,93337.0,0.0832]
[1736474685993,0.151,93338.0,93337.0,0.0832]
[1736474686388,0.152,93338.0,93337.0,0.0832]
[1736474686733,0.153,93338.0,93337.0,0.0832]
[1736474687076,0.151,93338.0,93337.0,0.0832]
[1736474687277,0.15,93338.0,93337.0,0.0832]
[1736474687486,0.15,93338.0,93337.0,0.0842]
[1736474687696,0.20962572,93338.0,93337.0,0.0842]
[1736474688560,0.15,93338.0,93337.0,0.0842]
[1736474688760,0.23198716,93339.0,93337.0,0.0832]
[1736474689163,0.23198716,93339.0,93337.0,0.0842]
[1736474689340,0.23198716,93339.0,93337.0,0.0832]
[1736474689718,0.23198716,93339.0,93337.0,0.0842]
[1736474689935,0.23198716,93339.0,93337.0,0.0832]
[1736474690339,0.23198716,93339.0,93337.0,0.0842]
[1736474690589,0.23198716,93339.0,93337.0,0.0832]
[1736474690787,0.23198716,93339.0,93337.0,0.0852]
[1736474692190,0.23198716,93339.0,93337.0,0.0902]
[1736474693192,0.15,93338.0,93337.0,0.0902]
[1736474693992,0.15,93338.0,93337.0,0.0882]
[1736474694373,0.21042972,93338.0,93337.0,0.0902]
[1736474695238,0.21042972,93338.0,93337.0,0.0852]
[1736474695650,0.21142972,93338.0,93337.0,0.0912]
[1736474695861,0.21042972,93338.0,93337.0,0.0832]
[1736474696266,0.153,93338.0,93337.0,0.0832]
[1736474696697,0.152,93338.0,93337.0,0.0832]
[1736474697099,0.153,93338.0,93337.0,0.0832]
[1736474699146,0.15,93338.0,93337.0,0.0832]
[1736474699373,0.152,93338.0,93337.0,0.0832]
[1736474699563,0.151,93338.0,93337.0,0.0832]
[1736474699934,0.15,93338.0,93337.0,0.0842]
[1736474703138,0.15,93338.0,93337.0,0.0832]
[1736474703533,0.15,93338.0,93337.0,0.0852]
[1736474703747,0.01771316,93339.0,93337.0,0.0852]
[1736474703928,0.15,93340.0,93337.0,0.0852]
[1736474704795,0.15,93338.0,93337.0,0.0852]
[1736474705023,0.15,93338.0,93337.0,0.0832]
[1736474705449,0.02250134,93343.0,93342.0,0.05824665]
[1736474705592,0.214234,93356.0,93350.0,0.077]
[1736474705769,0.15,93353.0,93350.0,0.077]
[1736474705971,0.214215,93364.0,93347.0,0.08914458]
[1736474705972,0.214217,93363.0,93359.0,0.05824665]
[1736474706207,0.21421,93367.0,93366.0,0.08914458]
[1736474706405,0.214196,93372.0,93370.0,0.08914458]
[1736474706618,0.214196,93372.0,93371.0,0.077]
[1736474707344,0.364196,93372.0,93371.0,0.077]
[1736474708221,0.15,93372.0,93371.0,0.15768577]
[1736474708421,0.00023245,93373.0,93372.0,0.05824665]
[1736474708647,0.00023245,93373.0,93372.0,0.14739123]
[1736474709990,0.00123245,93373.0,93372.0,0.15439123]
[1736474710200,0.00023245,93373.0,93372.0,0.15039123]
[1736474710818,0.00023245,93373.0,93372.0,0.25003035]
[1736474711018,0.00023245,93373.0,93372.0,0.22729123]
[1736474711655,0.00123245,93373.0,93372.0,0.23429123]
[1736474711865,0.00123245,93373.0,93372.0,0.23129123]
[1736474712073,0.00023245,93373.0,93372.0,0.22729123]
[1736474712281,0.00123245,93373.0,93372.0,0.23629123]
[1736474712522,0.14926426,93383.0,93382.0,0.08914458]
[1736474713370,0.14719906,93383.0,93382.0,0.16604458]
[1736474714221,0.14509994,93383.0,93382.0,0.16604458]
[1736474714426,0.14188804,93383.0,93382.0,0.16604458]
[1736474715250,0.14188804,93383.0,93382.0,0.17304458]
[1736474715423,0.14188804,93383.0,93382.0,0.16804458]
[1736474715632,0.14188804,93383.0,93382.0,0.16604458]
[1736474715831,0.14188804,93383.0,93382.0,0.17104458]
[1736474716054,0.14188804,93383.0,93382.0,0.17304458]
[1736474716427,0.02237506,93387.0,93385.0,0.08914458]
[1736474716610,0.214154,93391.0,93385.0,0.08914458]
[1736474716815,7.884e-05,93391.0,93387.0,0.08914458]
[1736474717072,0.214155,93390.0,93387.0,0.08914458]
[1736474717389,0.214155,93390.0,93387.0,0.1166537]
[1736474717534,0.214155,93390.0,93388.0,0.0784]
[1736474717959,0.214155,93390.0,93388.0,0.16754458]
[1736474718743,0.214155,93390.0,93388.0,0.16954458]
[1736474719144,0.214155,93390.0,93388.0,0.16754458]
[1736474719319,0.214155,93390.0,93388.0,0.16954458]
[1736474719666,0.0222644,93391.0,93389.0,0.05824665]
[1736474720073,7.884e-05,93391.0,93390.0,0.14739123]
[1736474720499,7.884e-05,93391.0,93390.0,0.22859123]
[1736474721827,0.00107884,93391.0,93390.0,0.23759123]
[1736474722908,0.00107884,93391.0,93390.0,0.24059123]
[1736474723285,0.00107884,93391.0,93390.0,0.23759123]
[1736474724121,0.00107884,93391.0,93390.0,0.0902]
[1736474724323,7.884e-05,93391.0,93390.0,0.13944665]
[1736474724647,0.00107884,93391.0,93390.0,0.17834458]
[1736474724858,0.00107884,93391.0,93390.0,0.17334458]
[1736474724986,7.884e-05,93391.0,93390.0,0.17334458]
[1736474725213,0.00107884,93391.0,93390.0,0.23659123]
[1736474725401,0.00107884,93391.0,93390.0,0.30835035]
[1736474725625,7.884e-05,93391.0,93390.0,0.30335035]
[1736474725826,0.00107884,93391.0,93390.0,0.28769123]
[1736474726181,7.884e-05,93391.0,93390.0,0.27669123]
[1736474726577,7.884e-05,93391.0,93390.0,0.27969123]
[1736474727597,0.00107884,93391.0,93390.0,0.28869123]
[1736474727816,0.00107884,93391.0,93390.0,0.28569123]
[1736474728028,0.00107884,93391.0,93390.0,0.27669123]
[1736474728232,7.884e-05,93391.0,93390.0,0.27669123]
[1736474728438,7.884e-05,93391.0,93390.0,0.27969123]
[1736474728643,7.884e-05,93391.0,93390.0,0.35049285]
[1736474728842,0.00107884,93391.0,93390.0,0.35649285]
[1736474729096,7.884e-05,93391.0,93390.0,0.34749285]
[1736474729328,0.00107884,93391.0,93390.0,0.28869123]
[1736474729680,0.00107884,93391.0,93390.0,0.28569123]
[1736474730569,7.884e-05,93391.0,93390.0,0.27669123]
[1736474731002,0.00107884,93391.0,93390.0,0.28569123]
[1736474731203,0.214097,93416.0,93406.0,0.081]
[1736474731408,7.883e-05,93410.0,93406.0,0.081]
[1736474732549,7.883e-05,93410.0,93406.0,0.10383912]
[1736474732681,0.42829883,93410.0,93406.0,0.10383912]
[1736474732885,0.15,93409.0,93406.0,0.081]
[1736474733094,0.15,93407.0,93406.0,0.081]
[1736474733925,0.364119,93406.0,93405.0,0.14739123]
[1736474735345,0.364119,93406.0,93405.0,0.14939123]
[1736474735968,0.364119,93406.0,93405.0,0.15039123]
[1736474736606,0.47343188,93406.0,93405.0,0.003]
[1736474736779,0.47475363,93406.0,93405.0,0.003]
[1736474737200,0.41494075,93406.0,93405.0,0.003]
[1736474737403,0.364119,93406.0,93405.0,0.003]
[1736474737634,0.364119,93406.0,93405.0,0.001]
[1736474737824,0.364148,93393.0,93392.0,0.08914458]
[1736474739214,0.364148,93393.0,93392.0,0.09014458]
[1736474739418,0.214144,93395.0,93392.0,0.08914458]
[1736474739777,0.214121,93406.0,93392.0,0.08914458]
[1736474739778,0.214121,93406.0,93405.0,0.08914458]
[1736474739987,0.15,93406.0,93405.0,0.14739123]
[1736474740197,0.214116,93407.0,93405.0,0.14739123]
[1736474740845,0.15,93406.0,93405.0,0.14739123]
[1736474742027,0.15,93406.0,93405.0,0.15139123]
[1736474742233,0.15,93406.0,93405.0,0.14839123]
[1736474742634,0.15,93406.0,93405.0,0.15039123]
[1736474745275,0.15,93406.0,93405.0,0.12539123]
[1736474745901,0.15,93406.0,93405.0,0.12239123]
[1736474746154,0.15,93406.0,93405.0,0.12439123]
[1736474746354,0.20982271,93406.0,93405.0,0.12439123]
[1736474746771,0.15,93406.0,93405.0,0.12439123]
[1736474747247,0.15,93406.0,93405.0,0.13039123]
[1736474747404,0.15,93406.0,93405.0,0.12839123]
[1736474747607,0.15,93406.0,93405.0,0.07014458]
[1736474747830,0.15,93406.0,93405.0,0.07214458]
[1736474748031,0.15,93406.0,93405.0,0.12439123]
[1736474748451,0.15,93406.0,93405.0,0.13039123]
[1736474748653,0.20982271,93406.0,93405.0,0.13039123]
[1736474749214,0.20982271,93406.0,93405.0,0.13049123]
[1736474749634,0.15,93406.0,93405.0,0.13049123]
[1736474750769,0.15,93406.0,93405.0,0.12849123]
[1736474751130,0.15,93406.0,93405.0,0.12349123]
[1736474751336,0.15,93406.0,93405.0,0.12549123]
[1736474751999,7.883e-05,93410.0,93409.0,0.12239123]
[1736474753093,7.883e-05,93410.0,93409.0,0.35126146]
[1736474753313,7.883e-05,93410.0,93409.0,0.35019099]
[1736474753687,7.883e-05,93410.0,93409.0,0.35419099]
[1736474754091,7.883e-05,93410.0,93409.0,0.35019099]
[1736474754298,7.883e-05,93410.0,93409.0,0.35419099]
[1736474754500,7.883e-05,93410.0,93409.0,0.44254389]
[1736474754706,7.883e-05,93410.0,93409.0,0.35119099]
[1736474754910,0.00107883,93410.0,93409.0,0.36019099]
[1736474755236,0.00107883,93410.0,93409.0,0.35919099]
[1736474755649,0.00107883,93410.0,93409.0,0.36419099]
[1736474763905,8.52e-05,93432.0,93413.0,0.22239123]
[1736474764114,8.52e-05,93432.0,93413.0,0.57429099]
[1736474764553,8.52e-05,93432.0,93413.0,0.47429099]
[1736474764759,8.52e-05,93432.0,93413.0,0.57429099]
[1736474765170,8.52e-05,93432.0,93413.0,0.58329099]
[1736474765387,8.52e-05,93432.0,93413.0,0.67859075]
[1736474765617,8.52e-05,93432.0,93413.0,0.68759075]
[1736474766051,8.52e-05,93432.0,93413.0,0.58759075]
[1736474766718,8.52e-05,93432.0,93413.0,0.69159075]
[1736474766932,8.52e-05,93432.0,93413.0,0.48729099]
[1736474767105,8.52e-05,93432.0,93413.0,0.36029099]
[1736474767306,0.2141512,93429.0,93413.0,0.14334665]
[1736474767508,0.21408,93423.0,93413.0,0.14334665]
[1736474767713,0.21408,93423.0,93413.0,0.21149123]
[1736474767959,0.21408,93423.0,93413.0,0.14734665]
[1736474768168,0.428183,93418.0,93413.0,0.14734665]
[1736474768400,0.428183,93418.0,93413.0,0.13539123]
[1736474768555,0.15,93417.0,93413.0,0.07714458]
[1736474768961,0.15,93417.0,93413.0,0.06814458]
[1736474769365,0.15,93417.0,93413.0,0.07314458]
[1736474770168,0.15,93417.0,93413.0,0.06914458]
[1736474770372,0.15,93417.0,93413.0,0.07114458]
[1736474770732,0.15,93417.0,93413.0,0.06614458]
[1736474770733,0.05791202,93414.0,93413.0,0.06614458]
[1736474771330,0.05791202,93414.0,93413.0,0.06714458]
[1736474771773,0.05791202,93414.0,93413.0,0.003]
[1736474772391,0.05791202,93414.0,93413.0,0.001]
[1736474772925,0.0461852,93414.0,93413.0,0.001]
[1736474773342,0.364119,93406.0,93405.0,0.06424458]
[1736474775262,0.38282946,93406.0,93405.0,0.06424458]
[1736474782515,0.215119,93406.0,93405.0,0.20069123]
[1736474783262,0.214119,93406.0,93405.0,0.20069123]
[1736474783648,0.215119,93406.0,93405.0,0.20069123]
[1736474783898,0.28126026,93406.0,93405.0,0.20069123]
[1736474784075,0.28026026,93406.0,93405.0,0.20069123]
[1736474784371,0.28026026,93406.0,93405.0,0.20269123]
[1736474784617,0.214119,93406.0,93405.0,0.20369123]
[1736474784816,0.214119,93406.0,93405.0,0.20169123]
[1736474785057,0.214119,93406.0,93405.0,0.20469123]
[1736474787110,0.214119,93406.0,93405.0,0.20369123]
[1736474787338,0.214119,93406.0,93405.0,0.20169123]
[1736474787764,0.214119,93406.0,93405.0,0.20469123]
[1736474787981,0.214119,93406.0,93405.0,0.06824458]
[1736474787982,0.28016026,93406.0,93405.0,0.06824458]
[1736474788199,0.28016026,93406.0,93405.0,0.0041]
[1736474788381,0.43016026,93406.0,93405.0,0.0011]
[1736474788730,0.364119,93406.0,93405.0,0.06524458]
[1736474788951,0.01807757,93409.0,93405.0,0.06524458]
[1736474788952,0.214108,93411.0,93410.0,0.12239123]
[1736474789356,0.364108,93411.0,93410.0,0.12239123]
[1736474790422,0.364108,93411.0,93410.0,0.12339123]
[1736474790844,0.364108,93411.0,93410.0,0.12239123]
[1736474792002,0.364108,93411.0,93410.0,0.12539123]
[1736474792204,0.364108,93411.0,93410.0,0.12339123]
[1736474792405,0.364108,93411.0,93410.0,0.12739123]
[1736474793259,0.364108,93411.0,93410.0,0.12639123]
[1736474793680,0.364108,93411.0,93410.0,0.12739123]
[1736474794097,0.364108,93411.0,93410.0,0.12239123]
[1736474794510,0.364108,93411.0,93410.0,0.12639123]
[1736474794725,0.364108,93411.0,93410.0,0.12239123]
[1736474795013,0.364108,93411.0,93410.0,0.12639123]
[1736474795627,0.364108,93411.0,93410.0,0.12739123]
[1736474796035,0.364108,93411.0,93410.0,0.12639123]
[1736474796248,0.364108,93411.0,93410.0,0.12739123]
[1736474796866,0.364108,93411.0,93410.0,0.12239123]
[1736474797098,0.364108,93411.0,93410.0,0.12339123]
[1736474797516,0.364108,93411.0,93410.0,0.12739123]
[1736474797877,0.364108,93411.0,93410.0,0.12339123]
[1736474797997,0.364108,93411.0,93410.0,0.12739123]
[1736474798198,0.364108,93411.0,93410.0,0.12339123]
[1736474798503,0.364108,93411.0,93410.0,0.12639123]
[1736474798752,0.364108,93411.0,93410.0,0.12739123]
[1736474799148,0.364108,93411.0,93410.0,0.12639123]
[1736474799539,0.364108,93411.0,93410.0,0.12739123]
[1736474800120,0.364108,93411.0,93410.0,0.12239123]
[1736474800438,0.364108,93411.0,93410.0,0.12739123]
[1736474800699,0.364108,93411.0,93410.0,0.12339123]
[1736474801110,0.364108,93411.0,93410.0,0.12739123]
[1736474801511,0.364108,93411.0,93410.0,0.12339123]
[1736474801733,0.214108,93411.0,93410.0,0.12239123]
[1736474801963,0.214108,93411.0,93410.0,0.12639123]
[1736474802451,0.214108,93411.0,93410.0,0.12739123]
[1736474802881,0.214108,93411.0,93410.0,0.12639123]
[1736474803103,0.214108,93411.0,93410.0,0.12339123]
[1736474803326,8.52e-05,93414.0,93413.0,0.12239123]
[1736474803544,8.52e-05,93414.0,93413.0,0.30636137]
[1736474803760,8.52e-05,93414.0,93413.0,0.37719099]
[1736474804598,8.52e-05,93414.0,93413.0,0.38019099]
[1736474804809,8.52e-05,93414.0,93413.0,0.37719099]
[1736474805224,8.52e-05,93414.0,93413.0,0.38619099]
[1736474805853,8.52e-05,93414.0,93413.0,0.48163199]
[1736474806242,8.52e-05,93414.0,93413.0,0.39019099]
[1736474806907,8.52e-05,93414.0,93413.0,0.36719099]
[1736474807638,8.52e-05,93414.0,93413.0,0.26289123]
[1736474807857,8.52e-05,93414.0,93413.0,0.20499123]
[1736474808459,8.52e-05,93414.0,93413.0,0.21399123]
[1736474808676,8.52e-05,93414.0,93413.0,0.20999123]
[1736474808851,8.52e-05,93414.0,93413.0,0.21399123]
[1736474809466,8.52e-05,93414.0,93413.0,0.20099123]
[1736474809672,8.52e-05,93414.0,93413.0,0.20499123]
[1736474809923,8.52e-05,93414.0,93413.0,0.21399123]
[1736474810666,8.52e-05,93414.0,93413.0,0.20499123]
[1736474811009,8.52e-05,93414.0,93413.0,0.20899123]
[1736474811224,8.52e-05,93414.0,93413.0,0.20499123]
[1736474811571,8.52e-05,93414.0,93413.0,0.20099123]
[1736474812004,8.52e-05,93414.0,93413.0,0.13784665]
[1736474812233,0.06432132,93414.0,93413.0,0.20199123]
[1736474812427,0.06432132,93414.0,93413.0,0.20099123]
[1736474812647,0.06432132,93414.0,93413.0,0.20999123]
[1736474812848,0.06432132,93414.0,93413.0,0.20199123]
[1736474813072,0.06432132,93414.0,93413.0,0.13784665]
[1736474813321,0.06432132,93414.0,93413.0,0.20499123]
[1736474813526,8.52e-05,93414.0,93413.0,0.20199123]
[1736474813724,8.52e-05,93414.0,93413.0,0.001]
[1736474814036,0.00088959,93414.0,93413.0,0.005]
[1736474814246,0.00088959,93414.0,93413.0,0.001]
[1736474814728,0.00088959,93414.0,93413.0,0.005]
[1736474814981,0.08020615,93414.0,93413.0,0.004]
[1736474815410,0.08020615,93414.0,93413.0,0.005]
[1736474815614,0.12850615,93414.0,93413.0,0.005]
[1736474816024,0.12850615,93414.0,93413.0,0.001]
[1736474816442,0.12850615,93414.0,93405.0,0.06424458]
[1736474816443,0.364119,93406.0,93405.0,0.06424458]
[1736474817041,0.364119,93406.0,93405.0,0.0001]
[1736474820137,0.372079,93406.0,93405.0,0.0001]
[1736474820977,0.38836903,93406.0,93405.0,0.0001]
[1736474821509,0.38936903,93406.0,93405.0,0.0001]
[1736474821709,0.44153714,93406.0,93405.0,0.0001]
[1736474821951,0.44053714,93406.0,93405.0,0.0001]
[1736474822151,0.44153714,93406.0,93405.0,0.0001]
[1736474822684,0.44053714,93406.0,93405.0,0.0001]
[1736474822887,0.44153714,93406.0,93405.0,0.0001]
[1736474823495,0.48329049,93406.0,93405.0,0.0001]
[1736474823687,1.06685465,93406.0,93405.0,0.0001]
[1736474823885,0.89580165,93406.0,93405.0,0.0001]
[1736474824085,0.52898265,93406.0,93405.0,0.0001]
[1736474824296,0.38936903,93406.0,93405.0,0.0001]
[1736474825074,0.38040903,93406.0,93405.0,0.0001]
[1736474825289,0.38140903,93406.0,93405.0,0.0001]
[1736474825728,0.38040903,93406.0,93405.0,0.0001]
[1736474826122,0.38240903,93406.0,93405.0,0.0011]
[1736474826530,0.38040903,93406.0,93405.0,0.0011]
[1736474826739,0.38040903,93406.0,93405.0,0.0001]
[1736474826950,0.464168,93406.0,93405.0,0.0001]
[1736474827152,0.4651727,93406.0,93405.0,0.0001]